bitfinex-derivatives/quotes_ETHF0:USTF0_20260120
["timestamp","ask_amount","ask_price","bid_price","bid_amount"]
[1768932951863,1.32818265,3009.2,3008.1,1.7898375]
[1768932953764,1.16185265,3009.2,3008.0,2.37904135]
[1768932953967,0.16634,3009.0,3008.0,2.37904135]
[1768932954372,0.16634,3009.0,3008.0,4.16887885]
[1768932954769,1.16185265,3008.6,3007.2,2.37904135]
[1768932954969,1.16185265,3008.6,3007.3,2.37904135]
[1768932955165,0.16637,3008.4,3007.4,1.7898375]
[1768932955365,0.16637,3008.4,3007.5,1.7898375]
[1768932955670,0.16637,3008.4,3007.6,1.7898375]
[1768932956267,0.16637,3008.4,3007.3,2.37904135]
[1768932956268,0.16637,3008.4,3007.7,1.7898375]
[1768932956463,1.16185265,3008.9,3007.6,4.16887885]
[1768932956664,0.16634,3009.0,3007.6,2.37904135]
[1768932956868,0.16634,3009.0,3007.7,1.7898375]
[1768932957265,1.876,3009.2,3007.6,2.37904135]
[1768932957266,0.16634,3008.9,3007.6,2.37904135]
[1768932958171,0.16634,3008.9,3007.6,4.16887885]
[1768932959666,1.876,3009.2,3007.6,4.16887885]
[1768932959972,0.16636,3008.6,3007.2,2.37904135]
[1768932960166,3.52532226,3008.9,3007.2,2.37904135]
[1768932960471,1.32823265,3008.3,3006.9,2.38476945]
[1768932960671,1.32823265,3008.3,3006.9,4.7638108]
[1768932960871,0.16639,3008.2,3007.1,1.7898375]
[1768932961067,0.1664,3007.9,3006.9,2.37904135]
[1768932961276,3.52532226,3008.6,3007.0,1.7898375]
[1768932961277,1.16185265,3008.0,3007.0,1.7898375]
[1768932961568,1.16185265,3008.0,3006.5,2.37904135]
[1768932961774,1.16185265,3007.7,3006.5,2.37904135]
[1768932961973,4.23946961,3008.2,3006.4,0.00317397]
[1768932961974,1.32828265,3007.4,3006.4,0.00317397]
[1768932962169,0.16643,3007.4,3006.4,0.00317397]
[1768932962370,0.16643,3007.4,3006.5,1.7898375]
[1768932963371,0.16643,3007.4,3006.4,0.00317397]
[1768932963572,0.16643,3007.4,3006.5,1.7898375]
[1768932964075,0.16643,3007.4,3006.6,1.7898375]
[1768932964375,0.16643,3007.4,3006.5,1.7898375]
[1768932964768,0.16643,3007.4,3006.6,1.7898375]
[1768932964972,0.16644,3007.2,3006.5,1.7898375]
[1768932965174,0.16644,3007.2,3006.4,0.00317397]
[1768932965175,0.16976588,3007.2,3006.4,0.00317397]
[1768932965373,0.16976588,3007.2,3006.6,1.7898375]
[1768932965574,0.16976588,3007.2,3006.4,0.00317397]
[1768932965775,0.16976588,3007.2,3006.7,1.7898375]
[1768932966275,0.16976588,3007.2,3006.8,1.7898375]
[1768932966479,0.16976588,3007.2,3006.7,1.7898375]
[1768932967078,0.16976588,3007.2,3006.8,1.7898375]
[1768932967277,0.16976588,3007.2,3006.7,1.7898375]
[1768932967676,0.16976588,3007.2,3006.8,1.7898375]
[1768932967873,0.16976588,3007.2,3006.7,1.7898375]
[1768932968272,3.4,3007.8,3006.7,1.7898375]
[1768932968476,0.16641,3007.7,3006.8,1.7898375]
[1768932968775,3.4,3007.8,3006.6,4.16887885]
[1768932968977,3.4,3007.8,3006.6,1.7898375]
[1768932969176,3.4,3007.8,3006.7,1.7898375]
[1768932969177,0.16643,3007.4,3006.7,1.7898375]
[1768932969378,0.16643,3007.4,3006.6,1.7898375]
[1768932969379,0.16916566,3007.4,3006.6,1.7898375]
[1768932969677,0.16916566,3007.4,3006.8,1.7898375]
[1768932970477,0.16916566,3007.4,3007.0,1.7898375]
[1768932970668,0.00273566,3007.4,3006.4,0.00317397]
[1768932970874,0.00273566,3007.4,3006.5,1.34777342]
[1768932971077,0.16645,3007.0,3006.1,1.34777342]
[1768932971587,0.16645,3007.0,3006.6,1.34777342]
[1768932971772,0.16645,3007.0,3006.7,1.00760342]
[1768932971972,0.16645,3007.0,3006.9,1.00760342]
[1768932972172,0.00273566,3007.4,3006.9,3.38664477]
[1768932972376,0.16642,3007.6,3007.2,1.00760342]
[1768932972586,0.16642,3007.6,3007.1,1.00760342]
[1768932972883,0.16642,3007.5,3006.6,0.00236478]
[1768932973080,0.16642,3007.5,3006.6,0.6690582]
[1768932973276,0.16642,3007.5,3006.9,0.66669342]
[1768932973479,0.16947396,3007.5,3006.9,0.66669342]
[1768932973679,0.16947396,3007.5,3007.0,0.66669342]
[1768932973880,0.16947396,3007.5,3006.9,0.66669342]
[1768932974383,0.16947396,3007.5,3006.6,0.00236478]
[1768932974583,0.16947396,3007.5,3006.9,0.66669342]
[1768932974782,0.16643,3007.4,3006.9,0.66669342]
[1768932975084,0.16643,3007.4,3006.6,2.38140613]
[1768932975285,0.16643,3007.4,3005.4,2.38476945]
[1768932975488,0.16643,3007.4,3006.0,2.38140613]
[1768932975878,0.1664,3007.9,3006.6,2.38140613]
[1768932976192,0.1664,3007.9,3005.6,2.38476945]
[1768932976193,0.1664,3007.9,3005.9,2.38140613]
[1768932976382,0.1664,3007.8,3006.2,2.38140613]
[1768932976583,0.1664,3007.8,3006.0,2.38140613]
[1768932976778,0.1664,3007.8,3006.2,2.38140613]
[1768932976979,2.32637792,3008.8,3006.9,2.47575201]
[1768932977186,0.16637,3008.4,3006.9,2.47575201]
[1768932977679,0.16637,3008.4,3007.2,4.85715814]
[1768932977876,0.16981665,3008.4,3007.2,2.47575201]
[1768932978078,3.4,3008.7,3007.6,2.47575201]
[1768932978274,0.16634,3009.0,3007.6,2.47575201]
[1768932978489,0.16634,3009.0,3007.8,2.47575201]
[1768932978783,0.16634,3008.9,3007.8,2.47575201]
[1768932979088,0.16932459,3008.9,3007.8,2.47575201]
[1768932979289,3.4,3009.4,3007.8,2.47575201]
[1768932979484,3.56632,3009.4,3008.0,4.85715814]
[1768932979679,0.16632,3009.4,3008.1,2.47575201]
[1768932980186,3.4,3009.7,3008.6,2.38140613]
[1768932980388,3.4033273,3009.7,3008.6,0.00350689]
[1768932980594,3.4033273,3009.7,3008.7,2.38140613]
[1768932981094,0.0033273,3009.7,3008.7,2.38140613]
[1768932981387,0.0033273,3009.7,3008.6,0.00350689]
[1768932981592,0.0033273,3009.7,3008.7,2.38140613]
[1768932981982,0.0033273,3009.7,3008.8,2.38140613]
[1768932982181,0.0033273,3009.7,3008.7,2.38140613]
[1768932982585,0.16632,3009.4,3008.7,2.38140613]
[1768932982992,2.32970522,3009.7,3008.6,0.00350689]
[1768932983394,0.16632,3009.3,3008.6,0.00350689]
[1768932986384,0.16633,3009.2,3008.6,0.00350689]
[1768932986588,0.16633,3009.1,3007.5,2.47575201]
[1768932986782,0.16633,3009.1,3007.7,1.86926613]
[1768932987085,0.16633,3009.1,3008.1,1.86926613]
[1768932987479,0.16633,3009.1,3008.4,1.86926613]
[1768932987685,0.16633,3009.1,3008.4,0.00432442]
[1768932987885,0.16633,3009.1,3008.5,1.86926613]
[1768932988291,0.16633,3009.1,3008.4,0.00432442]
[1768932988489,0.16634,3008.9,3007.5,2.47575201]
[1768932988787,2.32970522,3009.7,3007.9,1.86926613]
[1768932989089,0.16634,3009.0,3007.8,2.47575201]
[1768932989592,0.16634,3009.0,3008.1,1.86926613]
[1768932989793,0.16634,3009.0,3007.9,1.86926613]
[1768932990286,0.16634,3009.0,3008.0,1.86926613]
[1768932990591,0.16634,3009.0,3007.8,0.0029412]
[1768932990592,0.16634,3009.0,3007.9,1.86926613]
[1768932991090,0.16634,3009.0,3008.0,1.86926613]
[1768932991290,0.16634,3009.0,3007.9,1.86926613]
[1768932991783,2.32637792,3009.2,3007.8,0.0029412]
[1768932992192,0.16637,3008.5,3007.8,0.0029412]
[1768932992582,0.16637,3008.5,3007.8,1.87220733]
[1768932994987,0.16637,3008.5,3008.0,1.86926613]
[1768932995384,0.16637,3008.5,3007.8,0.0029412]
[1768932995385,0.16637,3008.5,3008.1,1.86926613]
[1768932995585,0.16633,3009.1,3008.2,1.86926613]
[1768932995792,0.16633,3009.1,3008.1,1.86926613]
[1768932996199,0.16633,3009.1,3008.3,1.86926613]
[1768932996395,0.16633,3009.1,3008.1,1.86926613]
[1768932996796,0.16633,3009.1,3008.3,1.86926613]
[1768932997099,0.16633,3009.1,3007.8,2.47869321]
[1768932997401,0.16633,3009.1,3008.2,1.86926613]
[1768932997795,0.16633,3009.1,3008.4,1.86926613]
[1768932998095,0.16633,3009.1,3008.2,1.86926613]
[1768932998596,0.16633,3009.1,3008.4,1.86926613]
[1768932998898,0.16633,3009.1,3007.8,2.47869321]
[1768932998899,0.16633,3009.1,3008.2,1.86926613]
[1768932999094,0.16634,3009.0,3008.2,1.86926613]
[1768932999289,0.0033273,3009.7,3008.7,4.34501814]
[1768932999693,0.0033273,3009.7,3009.2,1.86926613]
[1768932999891,0.0033273,3009.7,3007.8,4.86346266]
[1768933000097,0.0033273,3009.7,3008.5,1.86926613]
[1768933000491,0.0033273,3009.7,3008.8,1.86926613]
[1768933000693,0.0033273,3009.7,3008.5,1.86926613]
[1768933001200,0.16631,3009.6,3008.2,2.47575201]
[1768933001606,0.16631,3009.6,3008.6,1.86926613]
[1768933001799,2.32970522,3009.7,3007.8,0.0029412]
[1768933002103,2.32970522,3009.7,3008.0,1.86926613]
[1768933002104,0.16633,3009.1,3008.0,1.86926613]
[1768933002502,0.16633,3009.1,3007.8,0.0029412]
[1768933002503,0.16633,3009.1,3008.4,1.86926613]
[1768933002706,0.16633,3009.1,3008.3,1.86926613]
[1768933003210,0.16633,3009.1,3008.5,1.86926613]
[1768933003392,0.16633,3009.1,3008.3,1.86926613]
[1768933003795,0.16633,3009.1,3008.5,1.86926613]
[1768933003996,0.16633,3009.1,3008.3,1.86926613]
[1768933004398,0.16633,3009.1,3008.5,1.86926613]
[1768933004599,0.16633,3009.1,3008.6,1.86926613]
[1768933004800,0.16633,3009.1,3008.3,1.86926613]
[1768933005305,0.16633,3009.1,3008.5,1.86926613]
[1768933005504,0.16633,3009.1,3008.3,1.86926613]
[1768933005907,0.16633,3009.1,3008.5,1.86926613]
[1768933006105,0.16633,3009.1,3008.3,1.86926613]
[1768933006604,0.16633,3009.1,3008.5,1.86926613]
[1768933006798,0.16633,3009.1,3008.3,1.86926613]
[1768933007107,1.875,3009.0,3008.3,1.86926613]
[1768933007408,1.875,3009.0,3008.6,1.86926613]
[1768933007610,1.875,3009.0,3008.4,1.86926613]
[1768933008002,1.875,3008.9,3008.7,1.86926613]
[1768933008204,1.875,3008.9,3008.3,1.86926613]
[1768933008500,1.875,3008.9,3008.4,1.86926613]
[1768933008901,1.875,3008.9,3007.8,2.61549113]
[1768933009210,1.875,3008.9,3008.4,1.10610613]
[1768933009601,0.16635,3008.8,3007.8,2.38771065]
[1768933009913,0.16637,3008.5,3008.0,0.72233613]
[1768933010307,0.16637,3008.5,3008.2,0.38859613]
[1768933010807,0.16637,3008.5,3007.8,0.0029412]
[1768933011205,0.16637,3008.5,3008.1,0.38859613]
[1768933011596,0.16637,3008.5,3007.8,0.0029412]
[1768933011597,0.16637,3008.5,3008.2,0.05246613]
[1768933011803,0.16637,3008.5,3008.1,0.05246613]
[1768933012204,0.16637,3008.5,3007.8,0.0029412]
[1768933012507,0.16637,3008.4,3007.8,0.0029412]
[1768933012810,1.875,3008.9,3007.8,0.0029412]
[1768933012811,0.16638,3008.2,3007.8,0.0029412]
[1768933013502,1.875,3008.1,3007.8,0.0029412]
[1768933015611,1.876,3008.0,3007.8,0.0029412]
[1768933016706,0.16638,3008.2,3007.8,0.0029412]
[1768933016707,1.876,3007.9,3007.8,0.0029412]
[1768933017099,3.4,3008.7,3007.8,1.16527935]
[1768933017304,1.16233815,3008.9,3007.8,1.16527935]
[1768933017505,2.76213961,3009.7,3008.7,1.16233815]
[1768933017705,0.1696273,3009.7,3008.7,1.16233815]
[1768933017904,2.04231,3009.6,3008.9,1.16233815]
[1768933018306,2.04231,3009.6,3008.4,2.67847312]
[1768933018307,2.04231,3009.6,3008.7,1.16233815]
[1768933018501,0.16631,3009.5,3008.5,1.16233815]
[1768933018910,0.16631,3009.5,3008.4,2.67847312]
[1768933019112,0.16632,3009.4,3007.9,6.8553057]
[1768933019308,1.876,3009.6,3007.9,6.8553057]
[1768933019309,0.16632,3009.3,3007.9,6.8553057]
[1768933019715,1.79206313,3009.9,3007.8,0.0029412]
[1768933019716,2.04227,3010.3,3009.1,1.79206313]
[1768933019905,0.16627,3010.3,3009.1,1.79206313]
[1768933020217,0.16627,3010.3,3009.1,4.47053625]
[1768933020218,1.424,3010.2,3009.1,4.47053625]
[1768933020510,1.424,3010.2,3009.2,2.67847312]
[1768933020719,1.424,3010.2,3008.6,2.38476945]
[1768933020720,0.16628,3010.0,3008.6,2.38476945]
[1768933021013,0.16628,3010.0,3008.4,4.17683258]
[1768933021409,0.16628,3010.0,3008.9,2.67847312]
[1768933021715,0.00259787,3010.2,3008.9,2.67847312]
[1768933021716,1.79259787,3010.2,3008.9,2.67847312]
[1768933022117,0.00259787,3010.2,3008.9,2.67847312]
[1768933022311,1.87859787,3010.2,3008.9,2.67847312]
[1768933022713,0.00259787,3010.2,3008.9,2.67847312]
[1768933025920,0.16887787,3010.2,3008.9,2.67847312]
[1768933027219,0.00259787,3010.2,3008.9,2.67847312]
[1768933027523,0.16629,3010.0,3008.8,1.79206313]
[1768933028015,0.16629,3009.8,3008.4,4.47053625]
[1768933030113,0.16629,3009.8,3008.5,2.67847312]
[1768933030319,0.00259787,3010.2,3009.3,1.79206313]
[1768933030521,0.16626,3010.4,3009.4,2.67847312]
[1768933031514,0.16970243,3010.4,3009.4,2.67847312]
[1768933033122,0.00344243,3010.4,3009.4,2.67847312]
[1768933033821,0.00344243,3010.4,3008.3,6.418]
[1768933033822,0.16621,3011.4,3010.1,1.79206313]
[1768933034018,2.99707516,3011.5,3009.7,1.79206313]
[1768933034325,2.75881231,3011.3,3009.3,4.47053625]
[1768933034724,2.76303852,3011.3,3009.3,4.47341692]
[1768933035025,0.16624,3010.8,3009.3,4.47341692]
[1768933035517,0.16624,3010.7,3009.3,2.68135379]
[1768933035724,0.16627,3010.2,3009.3,0.00288067]
[1768933038018,1.875,3010.3,3009.3,0.00288067]
[1768933038227,0.16628,3010.0,3008.5,1.79206313]
[1768933039224,0.16629,3009.9,3008.5,0.00290184]
[1768933039728,0.1663,3009.7,3008.5,0.00290184]
[1768933039926,0.1663,3009.7,3008.5,4.51980717]
[1768933041022,0.1663,3009.7,3008.5,1.79496497]
[1768933041223,0.16631,3009.6,3008.5,0.00290184]
[1768933041923,0.16631,3009.5,3008.5,0.00290184]
[1768933043933,0.16632,3009.4,3008.5,0.00290184]
[1768933045636,0.16632,3009.3,3008.5,0.00290184]
[1768933045934,0.16633,3009.1,3008.5,0.00290184]
[1768933046132,0.16956996,3009.1,3008.5,0.00290184]
[1768933048629,0.00323996,3009.1,3007.9,2.7248422]
[1768933048833,0.00323996,3009.1,3008.1,1.79206313]
[1768933049636,0.00323996,3009.1,3008.1,1.79454198]
[1768933050038,0.00323996,3009.1,3008.1,0.00247885]
[1768933053435,4.84693934,3009.5,3008.1,1.79454198]
[1768933053737,0.1663,3009.7,3008.5,1.79206313]
[1768933054531,0.1689369,3009.7,3008.5,1.79206313]
[1768933055037,0.0026369,3009.7,3008.5,1.79206313]
[1768933057043,3.14087624,3009.7,3008.3,2.38476945]
[1768933057242,2.97193934,3009.5,3008.1,4.17931143]
[1768933057641,2.97193934,3009.5,3008.1,1.79454198]
[1768933058543,2.97193934,3009.3,3008.1,0.00247885]
[1768933058752,0.16633,3009.2,3008.1,0.00247885]
[1768933058945,2.97457624,3009.7,3008.1,1.79454198]
[1768933059136,2.97457624,3009.7,3008.5,1.79206313]
[1768933059540,2.97457624,3009.7,3008.1,4.51938418]
[1768933059739,2.97457624,3009.7,3008.1,1.79454198]
[1768933059942,2.97457624,3009.7,3008.1,4.51938418]
[1768933060944,3.14087624,3009.7,3008.1,1.79454198]
[1768933061744,2.97457624,3009.7,3008.5,1.79206313]
[1768933062145,0.0026369,3009.7,3008.5,1.79206313]
[1768933064444,3.04459966,3009.7,3008.3,2.38476945]
[1768933065445,3.23350107,3009.6,3008.3,2.38476945]
[1768933065645,3.23350107,3009.6,3008.4,2.38476945]
[1768933066152,3.23350107,3009.6,3008.3,2.38476945]
[1768933066347,3.23350107,3009.6,3008.4,2.38476945]
[1768933067652,3.23350107,3009.6,3008.3,2.38476945]
[1768933068750,3.23351107,3009.3,3008.1,0.00247885]
[1768933069049,3.23351107,3009.3,3008.1,2.3872483]
[1768933072264,0.16633,3009.2,3008.1,2.3872483]
[1768933072556,3.23352107,3009.2,3008.1,2.3872483]
[1768933075659,0.16633,3009.2,3008.1,2.3872483]
[1768933076756,3.06719107,3008.9,3008.1,0.00247885]
[1768933077158,3.23354107,3008.9,3008.1,0.00247885]
[1768933077357,3.23355107,3008.7,3007.6,2.38476945]
[1768933077559,3.06719107,3008.5,3007.4,2.38476945]
[1768933077861,3.23356107,3008.5,3007.3,2.38476945]
[1768933078459,3.23356107,3008.5,3007.3,0.00331125]
[1768933083265,3.23357107,3008.3,3007.3,0.00331125]
[1768933084060,5.10857107,3008.3,3007.3,0.00331125]
[1768933084263,3.23357107,3008.2,3007.3,0.00331125]
[1768933085162,3.23359107,3007.9,3006.8,2.38476945]
[1768933085359,3.23359107,3007.9,3006.6,2.38476945]
[1768933085560,3.23359107,3007.9,3006.5,2.38476945]
[1768933086156,3.23359107,3007.9,3006.3,2.38476945]
[1768933086361,3.06719107,3007.7,3006.2,2.38476945]
[1768933086557,1.875,3008.3,3006.0,2.38476945]
[1768933086558,3.06719107,3007.5,3006.0,2.38476945]
[1768933086754,3.06719107,3007.5,3005.9,2.99290499]
[1768933086755,3.06719107,3007.5,3005.9,2.38476945]
[1768933086962,3.06719107,3006.9,3005.4,6.50842185]
[1768933087161,3.07105305,3006.9,3005.4,0.00271098]
[1768933087673,3.23366107,3006.6,3005.4,0.00271098]
[1768933089361,0.00386198,3006.9,3005.4,0.00271098]
[1768933090467,3.06719107,3006.7,3005.4,0.00271098]
[1768933091069,3.23366107,3006.7,3005.4,0.00271098]
[1768933091867,0.16649,3006.2,3005.4,0.00271098]
[1768933092071,4.59119107,3006.7,3005.4,0.00271098]
[1768933092373,3.23366107,3006.6,3005.4,0.00271098]
[1768933094673,3.06719107,3006.4,3005.4,0.00271098]
[1768933096375,3.02992857,3006.3,3005.4,0.00271098]
[1768933096571,0.16649,3006.2,3005.4,0.00271098]
[1768933102379,3.19641857,3006.2,3005.4,0.00271098]
[1768933105374,3.02992857,3006.2,3005.4,0.00271098]
[1768933105687,1.876,3006.5,3005.4,0.00271098]
[1768933106078,5.07240857,3006.5,3005.4,0.00271098]
[1768933106283,3.03379055,3006.9,3005.4,0.00271098]
[1768933107484,3.20024055,3006.9,3005.4,0.00271098]
[1768933110683,3.02992857,3006.7,3005.4,0.00271098]
[1768933111187,0.00386198,3006.9,3005.4,0.00271098]
[1768933111188,3.02992857,3006.5,3005.4,0.00271098]
[1768933114086,3.03379055,3006.9,3005.4,0.00271098]
[1768933114279,3.03379055,3006.9,3005.6,2.38476945]
[1768933115288,3.02992857,3007.3,3006.0,2.38476945]
[1768933115484,3.02992857,3007.8,3006.3,2.38274017]
[1768933115689,3.02992857,3007.8,3006.4,2.38274017]
[1768933116091,3.02992857,3007.8,3006.3,2.38274017]
[1768933116388,3.03387078,3007.8,3006.3,2.38274017]
[1768933116892,3.03387078,3007.8,3006.1,2.38274017]
[1768933117097,3.03387078,3007.8,3005.9,2.99290499]
[1768933117098,3.02992857,3007.5,3005.9,2.38274017]
[1768933117285,0.00394221,3007.8,3005.7,2.38274017]
[1768933117286,3.02992857,3007.3,3005.7,2.38274017]
[1768933117889,3.02992857,3007.3,3005.6,2.38274017]
[1768933118989,3.19635857,3007.3,3005.6,2.38274017]
[1768933119188,3.02992857,3007.1,3005.4,0.00271098]
[1768933119383,3.02992857,3006.9,3005.4,0.00271098]
[1768933120895,3.02992857,3006.7,3005.4,0.00271098]
[1768933123892,3.25600614,3006.6,3005.4,0.00271098]
[1768933128496,0.16648,3006.5,3005.4,0.00271098]
[1768933128704,3.42948935,3006.5,3005.4,0.00271098]
[1768933130896,3.26300935,3006.4,3005.4,1.16664078]
[1768933131096,3.26300935,3006.2,3005.4,1.16664078]
[1768933131291,3.26300935,3006.2,3005.4,1.1639298]
[1768933131492,4.42693915,3005.5,3004.1,2.97940397]
[1768933131701,4.42693915,3005.1,3003.8,4.1236524]
[1768933131894,1.1639298,3004.6,3003.6,1.1639298]
[1768933132096,1.1639298,3004.4,3003.2,1.1639298]
[1768933132398,1.16742135,3004.4,3003.2,1.16719022]
[1768933132900,0.00349155,3004.4,3003.2,0.00326042]
[1768933133696,3.2665009,3004.4,3003.2,0.00326042]
[1768933134801,3.4331009,3004.4,3003.2,0.00326042]
[1768933135001,3.2665009,3004.4,3003.2,0.00326042]
[1768933135209,0.16662,3004.0,3003.2,0.00326042]
[1768933138703,3.42962935,3004.0,3003.2,0.00326042]
[1768933140996,0.16662,3003.9,3003.2,0.00326042]
[1768933141196,0.16664,3003.6,3002.5,3.23944353]
[1768933141607,0.16666,3003.2,3002.0,5.264]
[1768933141799,5.06154813,3003.2,3001.1,5.60390495]
[1768933142004,0.1667,3002.6,3001.1,3.23944353]
[1768933142304,0.1667,3002.6,3001.1,5.04179829]
[1768933144998,3.26300935,3003.1,3001.6,3.23944353]
[1768933145201,0.16665,3003.3,3001.6,3.23944353]
[1768933145704,0.16665,3003.3,3001.9,1.79853878]
[1768933145911,5.14000935,3003.6,3001.9,1.79853878]
[1768933146110,3.26300935,3003.5,3001.9,1.79853878]
[1768933146808,3.26300935,3003.5,3001.6,3.23944353]
[1768933147710,3.42967935,3003.1,3001.2,3.23944353]
[1768933147908,3.26300935,3003.1,3001.2,3.23944353]
[1768933148114,0.16669,3002.6,3001.2,3.23944353]
[1768933152010,0.16669,3002.6,3001.1,0.00381598]
[1768933152011,0.16671,3002.4,3001.1,0.00381598]
[1768933155613,0.16671,3002.3,3001.1,0.00381598]
[1768933157902,0.16671,3002.3,3001.1,3.59237937]
[1768933158207,0.16668,3002.8,3001.2,3.58856339]
[1768933158414,0.16669,3002.6,3001.2,3.58856339]
[1768933159707,5.07106303,3002.8,3001.1,0.00381598]
[1768933160019,3.27252425,3002.7,3001.1,0.00381598]
[1768933160714,0.16671,3002.2,3001.1,0.00381598]
[1768933161017,0.17006246,3002.2,3001.1,0.00381598]
[1768933162923,0.00335246,3002.2,3001.2,3.58856339]
[1768933164917,0.00335246,3002.2,3001.1,0.00381598]
[1768933165512,3.27252425,3002.1,3001.1,0.00381598]
[1768933165713,0.16673,3001.9,3001.1,0.00381598]
[1768933166916,0.16674,3001.7,3001.1,0.00381598]
[1768933170321,0.16672,3002.1,3001.1,0.00381598]
[1768933170522,0.00335246,3002.2,3001.1,5.39091815]
[1768933170719,0.00335246,3002.2,3001.2,3.58856339]
[1768933171520,0.00335246,3002.2,3001.2,5.95302481]
[1768933172224,0.00335246,3002.2,3001.2,3.58856339]
[1768933174028,0.00335246,3002.2,3001.1,4.16681618]
[1768933175230,0.00335246,3002.2,3001.1,0.00381598]
[1768933175632,0.00335246,3002.2,3001.1,4.16681618]
[1768933176129,0.00335246,3002.2,3001.1,7.75537957]
[1768933176330,0.00335246,3002.2,3001.2,3.58856339]
[1768933177124,0.00335246,3002.2,3001.2,5.95302481]
[1768933178329,0.00335246,3002.2,3001.3,2.36446142]
[1768933180930,0.16666,3003.1,3001.7,3.58856339]
[1768933181226,0.16666,3003.1,3001.7,5.95302481]
[1768933181928,0.16905132,3003.1,3001.7,5.95302481]
[1768933184434,3.67341382,3002.9,3001.5,2.36446142]
[1768933185234,3.67341382,3002.9,3001.6,2.36446142]
[1768933185431,3.67341382,3002.9,3001.5,2.36446142]
[1768933185632,3.67341382,3002.9,3001.6,2.36446142]
[1768933185935,0.16668,3002.9,3001.6,2.36446142]
[1768933186128,0.16668,3002.9,3001.7,2.36446142]
[1768933187034,0.16668,3002.8,3001.7,2.36446142]
[1768933187237,0.16668,3002.8,3001.6,2.36446142]
[1768933189034,0.16668,3002.8,3001.7,2.36446142]
[1768933189533,0.00239132,3003.1,3001.8,5.92431646]
[1768933189734,0.00239132,3003.1,3001.9,3.55985504]
[1768933189932,0.00239132,3003.1,3001.9,5.92431646]
[1768933191140,0.00239132,3003.1,3001.9,2.36446142]
[1768933191332,0.16667,3003.0,3001.8,2.36446142]
[1768933191537,3.57911656,3003.0,3001.8,2.36446142]
[1768933192035,3.57911656,3003.0,3001.7,2.36446142]
[1768933192237,3.57911656,3003.0,3001.8,2.36446142]
[1768933193142,3.57911656,3003.0,3001.7,2.36446142]
[1768933193342,3.57911656,3003.0,3001.8,2.36446142]
[1768933194344,3.57911656,3003.0,3001.7,2.36446142]
[1768933194535,0.16667,3003.0,3001.7,2.36446142]
[1768933194737,0.16667,3003.0,3001.8,2.36446142]
[1768933195547,0.16667,3003.0,3001.8,5.92431646]
[1768933195746,0.16667,3003.0,3001.9,3.55985504]
[1768933195948,0.16667,3003.0,3001.8,2.36446142]
[1768933197148,0.00239132,3003.1,3002.0,3.55985504]
[1768933197348,0.00239132,3003.1,3002.1,3.55985504]
[1768933198536,0.00239132,3003.1,3002.1,5.92431646]
[1768933198746,0.00239132,3003.1,3002.1,3.55985504]
[1768933199145,0.00239132,3003.1,3002.1,5.92431646]
[1768933199452,0.00239132,3003.1,3002.2,2.36446142]
[1768933201142,0.00239132,3003.1,3002.1,3.55985504]
[1768933201143,0.00239132,3003.1,3002.1,5.92431646]
[1768933201447,1.877,3003.9,3002.2,2.36446142]
[1768933201448,3.41244656,3003.9,3002.2,2.36446142]
[1768933201648,3.57909656,3003.4,3002.1,2.36446142]
[1768933201852,3.57909656,3003.4,3002.0,2.36446142]
[1768933202450,3.58191813,3003.4,3002.0,2.36446142]
[1768933202749,3.58191813,3003.4,3002.0,5.92431646]
[1768933202951,0.16947157,3003.4,3002.0,5.92431646]
[1768933203152,0.16665,3003.3,3002.0,5.92431646]
[1768933204053,3.57911656,3003.1,3001.8,2.36446142]
[1768933204953,3.57911656,3003.1,3001.6,5.92431646]
[1768933205248,3.57911656,3003.0,3001.6,5.92431646]
[1768933205456,3.4,3003.3,3001.3,2.95738215]
[1768933205457,3.41244656,3002.8,3001.5,2.36446142]
[1768933205757,0.1667,3002.5,3001.4,2.36446142]
[1768933205950,0.1667,3002.5,3001.2,2.36446142]
[1768933206353,0.1667,3002.4,3001.2,2.36446142]
[1768933206654,0.16673,3002.0,3001.1,0.00381598]
[1768933207555,0.16675,3001.6,3000.3,2.36446142]
[1768933207743,0.16675,3001.6,3000.2,2.36446142]
[1768933208159,0.16676,3001.4,3000.1,2.36446142]
[1768933208345,0.16676,3001.4,3000.0,7.86331646]
[1768933208665,0.16676,3001.4,3000.0,7.86622238]
[1768933208868,0.16676,3001.4,3000.0,5.92722238]
[1768933209075,0.16676,3001.4,3000.0,3.56276096]
[1768933209569,3.41244656,3001.8,3000.0,3.56276096]
[1768933209570,5.28944656,3001.8,3000.0,3.56276096]
[1768933209764,0.16674,3001.7,3000.0,3.56276096]
[1768933209966,0.16675,3001.6,3000.0,3.56276096]
[1768933210162,0.16676,3001.5,3000.0,3.56276096]
[1768933210359,0.16676,3001.3,3000.0,3.56276096]
[1768933211262,0.16676,3001.3,3000.0,0.00290592]
[1768933216368,0.16677,3001.2,3000.0,0.00290592]
[1768933216572,0.16972823,3001.2,3000.0,0.00290592]
[1768933218573,0.16678,3001.1,3000.0,0.00290592]
[1768933218875,0.16679,3000.8,3000.0,0.00290592]
[1768933219474,3.387145,3001.2,2999.1,2.36446142]
[1768933219475,3.38418677,3000.7,2999.1,2.36446142]
[1768933219676,3.38418677,3000.7,2998.9,3.335]
[1768933219677,3.38418677,3000.7,2998.9,3.57679858]
[1768933219871,0.16678,3001.0,2998.9,3.57679858]
[1768933220069,3.4,3000.9,2999.0,3.57679858]
[1768933220468,3.56679,3000.9,2999.0,3.57927791]
[1768933220672,3.55097677,3000.9,2999.0,3.57927791]
[1768933221675,0.16679,3000.8,2999.0,3.57927791]
[1768933222681,0.16679,3000.8,2999.0,3.74616791]
[1768933224079,0.16681,3000.6,2999.0,3.57927791]
[1768933224474,0.16681,3000.5,2999.0,3.57927791]
[1768933228579,3.38418677,3000.7,2999.0,3.57927791]
[1768933228884,3.4,3001.1,2999.0,3.57927791]
[1768933228885,3.55100677,3000.3,2999.0,0.00247933]
[1768933229383,0.16684,2999.9,2999.0,0.00247933]
[1768933229594,3.38418677,3000.0,2998.2,3.57679858]
[1768933229778,3.38418677,2999.9,2998.2,3.57679858]
[1768933229978,3.38418677,2999.9,2997.7,2.36446142]
[1768933229979,3.55105677,2999.5,2997.8,3.57679858]
[1768933230474,3.55105677,2999.4,2997.8,3.57679858]
[1768933230676,3.55106677,2999.3,2997.8,3.58030879]
[1768933231077,3.38418677,2999.8,2997.8,3.58030879]
[1768933231676,3.55103677,2999.7,2997.8,3.58030879]
[1768933232281,3.38418677,2999.5,2997.8,3.58030879]
[1768933233077,3.55105677,2999.5,2997.8,0.00351021]
[1768933233484,3.55105677,2999.5,2997.8,3.58030879]
[1768933234282,5.42905677,2999.5,2997.8,3.58030879]
[1768933234679,3.55105677,2999.5,2997.8,3.58030879]